fUST/lending_fUST_20250605
["ID","MTS","AMOUNT","RATE_DAILY","PERIOD"]
[364283804,1749058239501,-430.0,0.00019727,2]
[364283806,1749058239511,-403.4372791,0.00019727,2]
[364283807,1749058239521,-506.45264645,0.00019727,2]
[364283809,1749058239530,-430.0,0.00019727,2]
[364283811,1749058239542,-404.144865,0.00019727,2]
[364283813,1749058239552,-300.0,0.00019727,2]
[364283816,1749058239562,-430.0,0.00019727,2]
[364283817,1749058239572,-430.0,0.00019727,2]
[364283820,1749058239582,-430.0,0.00019727,2]
[364283822,1749058239591,-430.0,0.00019727,2]
[364283823,1749058239601,-430.0,0.00019727,2]
[364283826,1749058239611,-430.0,0.00019727,2]
[364283828,1749058239620,-430.0,0.00019727,2]
[364283830,1749058239630,-430.0,0.00019727,2]
[364283833,1749058239639,-430.0,0.00019727,2]
[364283835,1749058239648,-430.0,0.00019727,2]
[364283836,1749058239658,-509.03479397,0.00019727,2]
[364283837,1749058239667,-430.0,0.00019727,2]
[364283838,1749058239679,-430.0,0.00019727,2]
[364283839,1749058239689,-430.0,0.00019727,2]
[364283841,1749058239699,-430.0,0.00019727,2]
[364283843,1749058239708,-430.0,0.00019727,2]
[364283844,1749058239718,-430.0,0.00019727,2]
[364283845,1749058239727,-430.0,0.00019727,2]
[364283846,1749058239737,-430.0,0.00019727,2]
[364283847,1749058239747,-430.0,0.00019727,2]
[364283848,1749058239756,-430.0,0.00019727,2]
[364283849,1749058239766,-440.0,0.00019727,2]
[364283850,1749058239776,-440.0,0.00019727,2]
[364283851,1749058239786,-440.0,0.00019727,2]
[364283852,1749058239795,-201.7,0.00019727,2]
[364283853,1749058239804,-430.0,0.00019727,2]
[364283854,1749058239814,-440.0,0.00019727,2]
[364283855,1749058239823,-173.443,0.0001981,2]
[364283856,1749058239833,-862.47703085,0.00019831,2]
[364283857,1749058239842,-186.03254847,0.0002,2]
[364283858,1749058239852,-7009.58271473,0.0002,2]
[364283859,1749058239862,-440.0,0.00020001,2]
[364283860,1749058239871,-440.0,0.00020001,2]
[364283861,1749058239880,-440.0,0.00020001,2]
[364283862,1749058239890,-456.50954659,0.00020001,2]
[364283863,1749058239899,-1500.0,0.00020068,2]
[364283864,1749058239909,-862.47703085,0.00020072,2]
[364283865,1749058239919,-440.0,0.00020275,2]
[364283866,1749058239929,-440.0,0.00020275,2]
[364283867,1749058239939,-440.0,0.00020275,2]
[364283868,1749058239948,-862.47703085,0.00020314,3]
[364283869,1749058239958,-440.0,0.00020549,2]
[364283870,1749058239968,-440.0,0.00020549,2]
[364283871,1749058239977,-440.0,0.00020549,2]
[364283872,1749058239987,-862.47703085,0.00020555,3]
[364283873,1749058239996,-399.8,0.000206,2]
[364283874,1749058240006,-1054.31,0.000206,2]
[364283875,1749058240015,-862.47703085,0.00020797,4]
[364283876,1749058240025,-555.33999999,0.00020823,2]
[364283877,1749058240035,-440.0,0.00020823,2]
[364283879,1749058240044,-440.0,0.00020823,2]
[364283880,1749058240053,-862.47703085,0.00021038,4]
[364283882,1749058240063,-923.0,0.00021087,3]
[364283884,1749058240072,-461.5,0.00021087,3]
[364283886,1749058240081,-440.0,0.00021097,2]
[364283888,1749058240091,-440.0,0.00021097,2]
[364283890,1749058240100,-1500.0,0.00021164,2]
[364283892,1749058240112,-862.47703085,0.00021279,5]
[364283895,1749058240122,-440.0,0.00021371,2]
[364283896,1749058240132,-554.21,0.00021371,2]
[364283898,1749058240141,-862.47703085,0.00021521,5]
[364283900,1749058240151,-221.57447481,0.00021645,2]
[364283902,1749058240161,-862.47703085,0.00021762,5]
[364283904,1749058240172,-34483.86581197,0.00021946,2]
[364283906,1749058240182,-137350.44866626,0.00022,2]
[364283908,1749058240191,-862.47703085,0.00022003,6]
[364283910,1749058240201,-600.375544,0.00022168,2]
[364283912,1749058240212,-500.0,0.00022168,2]
[364283914,1749058240221,-500.0,0.00022168,2]
[364283916,1749058240231,-500.0,0.00022168,2]
[364283918,1749058240240,-500.0,0.00022168,2]
[364283920,1749058240250,-5000.0,0.00022168,2]
[364283922,1749058240259,-500.0,0.00022168,2]
[364283924,1749058240268,-500.0,0.00022168,2]
[364283926,1749058240278,-500.0,0.00022168,2]
[364283928,1749058240287,-500.0,0.00022168,2]
[364283930,1749058240297,-500.0,0.00022168,2]
[364283932,1749058240306,-207.4,0.00022168,2]
[364283934,1749058240315,-500.0,0.00022168,2]
[364283936,1749058240325,-500.0,0.00022168,2]
[364283938,1749058240334,-500.0,0.00022168,2]
[364283940,1749058240344,-500.0,0.00022168,2]
[364283942,1749058240358,-500.0,0.00022168,2]
[364283944,1749058240367,-500.0,0.00022168,2]
[364283946,1749058240377,-1054.31,0.000222,7]
[364283948,1749058240386,-239.5,0.0002221,6]
[364283950,1749058240397,-239.5,0.0002221,6]
[364283952,1749058240406,-239.5,0.0002221,6]
[364283954,1749058240415,-239.5,0.0002221,6]
[364283956,1749058240426,-239.5,0.0002221,6]
[364283957,1749058240435,-239.5,0.0002221,6]
[364283959,1749058240444,-239.5,0.0002221,6]
[364283961,1749058240454,-239.5,0.0002221,6]
[364283964,1749058240464,-239.6,0.0002221,6]
[364283965,1749058240474,-862.47703085,0.00022245,6]
[364283967,1749058240483,-1500.0,0.0002226,2]
[364283969,1749058240493,-12500.0,0.00022447,2]
[364283971,1749058240502,-12500.0,0.00022456,2]
[364283973,1749058240511,-12500.0,0.00022465,2]
[364283975,1749058240521,-151.0,0.00022466,2]
[364283977,1749058240530,-500.0,0.00022466,2]
[364283979,1749058240540,-500.0,0.00022466,2]
[364283981,1749058240549,-151.0,0.00022493,2]
[364283983,1749058240559,-500.0,0.00022493,2]
[364283985,1749058240569,-500.0,0.00022493,2]
[364283987,1749058240578,-500.0,0.00022521,2]
[364283989,1749058240588,-500.0,0.00022521,2]
[364283991,1749058240598,-500.0,0.00022548,2]
[364283993,1749058240607,-500.0,0.00022548,2]
[364283995,1749058240616,-500.0,0.00022576,2]
[364283997,1749058240626,-500.0,0.00022576,2]
[364283999,1749058240635,-500.0,0.00022603,2]
[364284001,1749058240644,-500.0,0.00022603,2]
[364284003,1749058240653,-500.0,0.0002263,2]
[364284005,1749058240663,-162.0,0.0002263,2]
[364284007,1749058240673,-412.31268897,0.00022658,2]
[364284009,1749058240682,-5000.0,0.00022668,2]
[364284011,1749058240693,-500.0,0.000227,2]
[364284013,1749058240703,-500.0,0.000227,2]
[364284015,1749058240713,-5000.0,0.00022716,2]
[364284017,1749058240722,-5000.0,0.00022787,2]
[364284019,1749058240732,-399.8,0.000228,7]
[364284021,1749058240741,-151.0,0.000228,9]
[364284023,1749058240751,-5000.0,0.00022842,2]
[364284025,1749058240761,-151.0,0.00022878,2]
[364284027,1749058240770,-152.63117165,0.00022878,2]
[364284029,1749058240780,-500.0,0.00022878,2]
[364284031,1749058240790,-500.0,0.00022878,2]
[364284033,1749058240799,-151.0,0.00022905,2]
[364284035,1749058240808,-500.0,0.00022905,2]
[364284037,1749058240818,-500.0,0.00022905,2]
[364284039,1749058240827,-151.0,0.00022933,2]
[364284041,1749058240837,-500.0,0.00022933,2]
[364284043,1749058240846,-500.0,0.00022933,2]
[364284045,1749058240856,-151.0,0.0002296,2]
[364284047,1749058240865,-500.0,0.0002296,2]
[364284049,1749058240875,-500.0,0.0002296,2]
[364284051,1749058240885,-329.57155879,0.00022973,2]
[364284053,1749058240894,-500.0,0.00022973,2]
[364284055,1749058240903,-500.0,0.00022973,2]
[364284057,1749058240913,-600.0,0.00022973,2]
[364284059,1749058240923,-500.0,0.00022973,2]
[364284061,1749058240932,-5000.21,0.00022986,2]
[364284063,1749058240942,-204.59836485,0.00022988,2]
[364284065,1749058240951,-500.0,0.00022988,2]
[364284067,1749058240960,-500.0,0.00022988,2]
[364284069,1749058240971,-606.8325654,0.00022999,2]
[364284071,1749058240979,-500.0,0.00022999,2]
[364284073,1749058240989,-399.78833394,0.00022999,2]
[364284075,1749058240998,-500.0,0.00022999,2]
[364284077,1749058241008,-500.0,0.00022999,2]
[364284079,1749058241017,-500.0,0.00022999,2]
[364284081,1749058241026,-500.0,0.00022999,2]
[364284083,1749058241036,-500.0,0.00022999,2]
[364284085,1749058241045,-2000.0,0.00023,2]
[364284087,1749058241055,-77346.01731175,0.00023,2]
[364284089,1749058241065,-248.29768602,0.00023,2]
[364284091,1749058241074,-4760.27058268,0.00023,2]
[364284093,1749058241089,-1026.09999383,0.00023,2]
[364284311,1749058243244,-440.0,0.00019727,2]
[364284313,1749058243254,-408.73,0.00020001,2]
[364284315,1749058243264,-152.05,0.0002199,10]
[364284318,1749058243273,-862.47703085,0.00022486,7]
[364284321,1749058243283,-862.47703085,0.00022728,7]
[364284323,1749058243293,-862.47703085,0.00022969,8]
[364284325,1749058243302,-6357.40080648,0.00023,2]
[364287060,1749059170227,164.91492305,0.00016338,2]
[364287061,1749059205591,195.10666543,0.00016338,2]
[364287071,1749059368114,200.92038346,0.00016338,2]
[364287073,1749059403121,1631.12731102,0.000164,2]
[364287088,1749059432457,-400.88195381,0.00016438,2]
[364287089,1749059432467,-430.0,0.00016438,2]
[364287090,1749059432476,-195.10666541,0.0001817,2]
[364287091,1749059432485,-229.45591648,0.00018853,2]
[364287092,1749059432494,-468.85248963,0.000189,2]
[364287093,1749059432503,-500.7147866,0.00019879,2]
[364287094,1749059432515,-195.10666541,0.00020002,2]
[364287095,1749059432525,-1300.0,0.00020068,2]
[364287096,1749059432534,-285.631768,0.00020102,2]
[364287097,1749059432544,-196.3040476,0.00020422,2]
[364287098,1749059432553,-1387.93864285,0.00020422,2]
[364287099,1749059432563,-1200.0,0.00020692,2]
[364287100,1749059432572,-2225.9632699,0.00020693,2]
[364287101,1749059432581,-300.0,0.00020723,2]
[364287102,1749059432590,-300.0,0.00020723,2]
[364287103,1749059432599,-300.0,0.00020723,2]
[364287104,1749059432609,-708.0672241,0.00020724,2]
[364287105,1749059432618,-179.427373,0.0002084,2]
[364287106,1749059432627,-430.0,0.00020844,2]
[364287107,1749059432636,-464.03,0.00020844,2]
[364287108,1749059432645,-501.71,0.00020844,2]
[364287109,1749059432654,-11862.7125711,0.00020845,2]
[364287110,1749059432664,-508.29789357,0.00020899,2]
[364287111,1749059432674,-440.0,0.00020952,2]
[364287112,1749059432685,-440.0,0.00020952,2]
[364287113,1749059432695,-440.0,0.00020952,2]
[364287114,1749059432705,-1910.0,0.00021,2]
[364287115,1749059432715,-1300.0,0.00021164,2]
[364287116,1749059432724,-440.0,0.00021226,2]
[364287117,1749059432734,-440.0,0.00021226,2]
[364287118,1749059432744,-440.0,0.00021226,2]
[364287119,1749059432754,-364.4406513,0.00021288,2]
[364287120,1749059432768,-281.32,0.000215,2]
[364287121,1749059432778,-440.0,0.000215,2]
[364287123,1749059432787,-278.49,0.000215,2]
[364287125,1749059432798,-279.72,0.00021774,2]
[364287126,1749059432809,-168.94291982,0.00021817,2]
[364287127,1749059432818,-714.6305102,0.00021863,2]
[364287128,1749059432828,-364.5816698,0.00021863,2]
[364287130,1749059432838,-468.42279524,0.000219,6]
[364287132,1749059432849,-239.5,0.00022003,6]
[364287135,1749059432858,-239.5,0.00022003,6]
[364287136,1749059432868,-239.5,0.00022003,6]
[364287138,1749059432878,-239.5,0.00022003,6]
[364287139,1749059432888,-239.5,0.00022003,6]
[364287140,1749059432903,-239.5,0.00022003,6]
[364287141,1749059432913,-239.5,0.00022003,6]
[364287143,1749059432924,-239.5,0.00022003,6]
[364287145,1749059432935,-239.6,0.00022003,6]
[364287147,1749059432945,-468.42279522,0.00022003,6]
[364287149,1749059432954,-430.0,0.00022106,2]
[364287152,1749059432964,-500.0,0.00022107,6]
[364287153,1749059432974,-311.80897193,0.00022107,6]
[364287964,1749059446553,-450.0,0.00016438,2]
[364287966,1749059446563,-59.6161884,0.00016438,2]
[364292725,1749059715108,167.122216,0.00013699,2]
[364292756,1749060472676,704.45850907,0.00016,2]
[364292816,1749060632858,-263.07917187,0.000189,2]
[364292820,1749060632879,-108.04996015,0.000189,2]
[364292822,1749060632889,-285.631768,0.00019733,2]
[364292824,1749060632899,-1400.0,0.00020068,2]
[364292826,1749060632909,-1200.0,0.00020192,2]
[364292828,1749060632919,-5000.0,0.00020193,2]
[364292829,1749060632929,-300.0,0.00020771,2]
[364292830,1749060632939,-183.0,0.00020771,2]
[364292831,1749060632949,-300.0,0.00020771,2]
[364292832,1749060632960,-950.55113302,0.00020772,2]
[364292833,1749060632971,-157.12,0.00020833,10]
[364292834,1749060632983,-785.61,0.00020833,10]
[364292835,1749060632993,-300.0,0.0002084,2]
[364292836,1749060633003,-440.0,0.00020841,2]
[364292837,1749060633012,-440.0,0.00020841,2]
[364292838,1749060633022,-440.0,0.00020842,2]
[364292839,1749060633032,-802.75,0.00020842,2]
[364292840,1749060633042,-733.96,0.00020842,2]
[364292841,1749060633052,-509.46256607,0.00020842,2]
[364292842,1749060633063,-440.0,0.00020842,2]
[364292843,1749060633073,-440.0,0.00020842,2]
[364292844,1749060633083,-337.00565019,0.00020842,2]
[364292845,1749060633092,-440.0,0.00020842,2]
[364292846,1749060633102,-440.0,0.00020842,2]
[364292847,1749060633112,-1948.38,0.00020842,2]
[364292848,1749060633122,-430.0,0.00020842,2]
[364292849,1749060633132,-440.0,0.00020842,2]
[364292850,1749060633142,-440.0,0.00020842,2]
[364292851,1749060633152,-430.0,0.00020842,2]
[364292852,1749060633162,-440.0,0.00020842,2]
[364292853,1749060633173,-440.0,0.00020842,2]
[364292854,1749060633186,-440.0,0.00020842,2]
[364292855,1749060633197,-440.0,0.00020842,2]
[364292856,1749060633207,-440.0,0.00020842,2]
[364292857,1749060633217,-440.0,0.00020842,2]
[364292858,1749060633228,-430.0,0.00020842,2]
[364292859,1749060633241,-440.0,0.00020842,2]
[364292860,1749060633252,-440.0,0.00020842,2]
[364292861,1749060633262,-440.0,0.00020842,2]
[364292862,1749060633272,-400.0,0.00020842,2]
[364292863,1749060633282,-430.0,0.00020842,2]
[364292864,1749060633292,-430.0,0.00020842,2]
[364292865,1749060633302,-430.0,0.00020842,2]
[364292866,1749060633312,-403.08515721,0.00020842,2]
[364292867,1749060633322,-430.0,0.00020842,2]
[364292868,1749060633332,-440.0,0.00020842,2]
[364292869,1749060633342,-440.0,0.00020842,2]
[364292870,1749060633352,-475.57,0.00020842,2]
[364292871,1749060633362,-430.0,0.00020842,2]
[364292872,1749060633372,-624.88,0.00020842,2]
[364292873,1749060633382,-430.0,0.00020842,2]
[364292874,1749060633392,-440.0,0.00020842,2]
[364292875,1749060633403,-430.0,0.00020842,2]
[364292876,1749060633412,-430.0,0.00020842,2]
[364292877,1749060633422,-440.0,0.00020842,2]
[364292878,1749060633432,-438.86606368,0.00020842,2]
[364292879,1749060633441,-440.0,0.00020842,2]
[364292880,1749060633451,-430.0,0.00020842,2]
[364292881,1749060633460,-440.0,0.00020842,2]
[364292882,1749060633469,-440.0,0.00020842,2]
[364292883,1749060633479,-430.0,0.00020842,2]
[364292884,1749060633491,-518.34,0.00020842,2]
[364292885,1749060633502,-500.0,0.00020842,2]
[364292886,1749060633512,-500.0,0.00020842,2]
[364292887,1749060633522,-500.0,0.00020842,2]
[364292888,1749060633532,-500.0,0.00020842,2]
[364292889,1749060633542,-500.0,0.00020842,2]
[364292890,1749060633552,-500.0,0.00020842,2]
[364292891,1749060633561,-350.60575883,0.00020842,2]
[364292892,1749060633571,-235.72198013,0.00020842,2]
[364292893,1749060633582,-500.0,0.00020842,2]
[364292894,1749060633592,-500.0,0.00020842,2]
[364292895,1749060633602,-500.0,0.00020842,2]
[364292896,1749060633612,-7825.47379939,0.00020842,3]
[364292897,1749060633622,-35171.26619819,0.00020843,2]
[364292898,1749060633635,-53643.45218665,0.00020843,2]
[364292899,1749060633645,-436.08697673,0.00020843,2]
[364292900,1749060633655,-450.0,0.00020843,2]
[364292901,1749060633666,-440.0,0.00020843,2]
[364292902,1749060633676,-440.0,0.00020843,2]
[364292903,1749060633685,-430.0,0.00020843,2]
[364292904,1749060633695,-449.30003978,0.00020843,2]
[364292905,1749060633704,-440.0,0.00020843,2]
[364292906,1749060633715,-431.25416698,0.00020843,2]
[364292907,1749060633725,-390.0,0.00020843,2]
[364292908,1749060633735,-440.0,0.00020843,2]
[364292909,1749060633746,-440.0,0.00020843,2]
[364292910,1749060633756,-440.09053989,0.00020843,2]
[364292911,1749060633768,-440.0,0.00020843,2]
[364292912,1749060633778,-440.0,0.00020843,2]
[364292913,1749060633789,-558.48076791,0.00020843,2]
[364292914,1749060633799,-443.64799591,0.00020843,2]
[364292915,1749060633809,-514.22176181,0.00020843,2]
[364292916,1749060633820,-503.3260284,0.00020843,2]
[364292917,1749060633829,-440.0,0.00020843,2]
[364292918,1749060633839,-440.0,0.00020843,2]
[364292919,1749060633850,-440.0,0.00020843,2]
[364292920,1749060633859,-445.37745601,0.00020843,2]
[364292921,1749060633869,-440.0,0.00020843,2]
[364292922,1749060633879,-437.78767133,0.00020843,2]
[364292923,1749060633890,-440.0,0.00020843,2]
[364292924,1749060633899,-440.0,0.00020843,2]
[364292925,1749060633910,-440.0,0.00020843,2]
[364292926,1749060633920,-460.91737686,0.00020843,2]
[364292927,1749060633929,-440.0,0.00020843,2]
[364292928,1749060633939,-440.0,0.00020843,2]
[364292929,1749060633949,-420.0,0.00020843,2]
[364292930,1749060633959,-440.0,0.00020843,2]
[364292931,1749060633969,-556.00428834,0.00020843,2]
[364292932,1749060633979,-459.80013698,0.00020843,2]
[364292933,1749060633990,-440.0,0.00020843,2]
[364292934,1749060634000,-441.02540797,0.00020843,2]
[364292935,1749060634010,-517.37955047,0.00020843,2]
[364292936,1749060634020,-450.25561317,0.00020843,2]
[364292937,1749060634030,-450.0,0.00020843,2]
[364292938,1749060634039,-445.52433474,0.00020843,2]
[364292939,1749060634050,-440.0,0.00020843,2]
[364292940,1749060634059,-505.24586559,0.00020843,2]
[364292941,1749060634069,-440.0,0.00020843,2]
[364292942,1749060634079,-426.53720449,0.00020843,2]
[364292943,1749060634089,-440.0,0.00020843,2]
[364292944,1749060634100,-440.0,0.00020843,2]
[364292945,1749060634110,-440.0,0.00020843,2]
[364292946,1749060634121,-440.0,0.00020843,2]
[364292947,1749060634132,-220.83138837,0.00020843,2]
[364292948,1749060634142,-440.0,0.00020843,2]
[364292949,1749060634152,-440.0,0.00020843,2]
[364292950,1749060634163,-509.96422887,0.00020843,2]
[364292951,1749060634174,-440.0,0.00020843,2]
[364292952,1749060634187,-440.0,0.00020843,2]
[364292953,1749060634197,-452.79946169,0.00020843,2]
[364292954,1749060634207,-440.0,0.00020843,2]
[364292955,1749060634218,-440.0,0.00020843,2]
[364292956,1749060634228,-443.54183881,0.00020843,2]
[364292957,1749060634238,-440.0,0.00020843,2]
[364292958,1749060634248,-440.0,0.00020843,2]
[364292959,1749060634260,-440.0,0.00020843,2]
[364292960,1749060634271,-440.0,0.00020843,2]
[364292961,1749060634282,-443.46448818,0.00020843,2]
[364292962,1749060634291,-505.73193461,0.00020843,2]
[364292963,1749060634301,-255.91969351,0.00020843,2]
[364292964,1749060634312,-400.0,0.00020843,2]
[364292965,1749060634322,-438.5400187,0.00020843,2]
[364292966,1749060634332,-430.0,0.00020843,2]
[364292967,1749060634344,-440.0,0.00020843,2]
[364292968,1749060634354,-440.0,0.00020843,2]
[364292969,1749060634364,-430.0,0.00020843,2]
[364292970,1749060634374,-430.0,0.00020843,2]
[364292971,1749060634385,-440.0,0.00020843,2]
[364292972,1749060634395,-400.0,0.00020843,2]
[364292973,1749060634405,-440.0,0.00020843,2]
[364292974,1749060634415,-224.73162541,0.00020843,2]
[364292975,1749060634424,-440.0,0.00020843,2]
[364292976,1749060634434,-500.0,0.00020843,2]
[364292977,1749060634443,-500.0,0.00020843,2]
[364292978,1749060634453,-440.0,0.00020843,2]
[364292979,1749060634462,-440.0,0.00020843,2]
[364292980,1749060634472,-440.0,0.00020843,2]
[364292981,1749060634481,-400.0,0.00020843,2]
[364292982,1749060634492,-440.0,0.00020843,2]
[364292983,1749060634502,-440.0,0.00020843,2]
[364292984,1749060634512,-440.0,0.00020843,2]
[364292985,1749060634521,-440.0,0.00020843,2]
[364292986,1749060634530,-440.0,0.00020843,2]
[364292987,1749060634540,-430.0,0.00020843,2]
[364292988,1749060634551,-440.0,0.00020843,2]
[364292989,1749060634561,-440.0,0.00020843,2]
[364292990,1749060634571,-440.0,0.00020843,2]
[364292991,1749060634580,-440.0,0.00020843,2]
[364292992,1749060634589,-500.89424069,0.00020843,2]
[364292993,1749060634599,-440.0,0.00020843,2]
[364292994,1749060634609,-507.47,0.00020843,2]
[364292995,1749060634620,-440.0,0.00020843,2]
[364292996,1749060634630,-440.0,0.00020843,2]
[364292997,1749060634639,-440.0,0.00020843,2]
[364292998,1749060634649,-440.0,0.00020843,2]
[364292999,1749060634658,-325.127361,0.00020843,2]
[364293000,1749060634668,-440.0,0.00020843,2]
[364293001,1749060634678,-440.0,0.00020843,2]
[364293002,1749060634687,-407.3406,0.00020843,2]
[364293003,1749060634696,-440.0,0.00020843,2]
[364293004,1749060634706,-440.0,0.00020843,2]
[364293005,1749060634715,-440.0,0.00020843,2]
[364293006,1749060634724,-510.0,0.00020843,2]
[364293007,1749060634735,-430.0,0.00020843,2]
[364293008,1749060634744,-441.94390668,0.00020843,2]
[364293009,1749060634754,-400.44101049,0.00020843,2]
[364293010,1749060634764,-351.89463732,0.00020843,2]
[364293011,1749060634773,-430.0,0.00020843,2]
[364293012,1749060634783,-400.0,0.00020843,2]
[364293013,1749060634792,-401.94791511,0.00020843,2]
[364293014,1749060634801,-440.0,0.00020843,2]
[364293015,1749060634813,-440.0,0.00020843,2]
[364293016,1749060634827,-403.62305558,0.00020843,2]
[364293017,1749060634837,-440.0,0.00020843,2]
[364293018,1749060634847,-440.0,0.00020843,2]
[364293019,1749060634857,-440.0,0.00020843,2]
[364293020,1749060634867,-440.0,0.00020843,2]
[364293021,1749060634877,-400.0,0.00020843,2]
[364293022,1749060634888,-440.0,0.00020843,2]
[364293023,1749060634898,-440.0,0.00020843,2]
[364293024,1749060634907,-528.04361022,0.00020843,2]
[364293025,1749060634917,-500.0,0.00020843,2]
[364293026,1749060634927,-500.0,0.00020843,2]
[364293027,1749060634937,-440.0,0.00020843,2]
[364293028,1749060634947,-400.0,0.00020843,2]
[364293029,1749060634957,-402.52947357,0.00020843,2]
[364293030,1749060634969,-402.56902387,0.00020843,2]
[364293031,1749060634981,-440.0,0.00020843,2]
[364293032,1749060634992,-440.0,0.00020843,2]
[364293033,1749060635002,-440.0,0.00020843,2]
[364293034,1749060635012,-440.0,0.00020843,2]
[364293035,1749060635022,-440.0,0.00020843,2]
[364293036,1749060635032,-440.0,0.00020843,2]
[364293037,1749060635042,-189.34039913,0.00020843,2]
[364293038,1749060635052,-440.0,0.00020843,2]
[364293039,1749060635062,-400.0,0.00020843,2]
[364293040,1749060635072,-406.69462422,0.00020843,2]
[364293041,1749060635082,-440.0,0.00020843,2]
[364293042,1749060635092,-440.0,0.00020843,2]
[364293043,1749060635102,-370.0,0.00020843,2]
[364293044,1749060635112,-430.0,0.00020843,2]
[364293045,1749060635122,-430.0,0.00020843,2]
[364293046,1749060635133,-440.0,0.00020843,2]
[364293047,1749060635144,-414.71003041,0.00020843,2]
[364293048,1749060635154,-440.0,0.00020843,2]
[364293049,1749060635163,-507.63682359,0.00020843,2]
[364293050,1749060635173,-440.0,0.00020843,2]
[364293051,1749060635187,-401.61404697,0.00020843,2]
[364293052,1749060635197,-565.05,0.00020843,2]
[364293053,1749060635207,-440.0,0.00020843,2]
[364293054,1749060635217,-507.88493114,0.00020843,2]
[364293055,1749060635227,-400.0,0.00020843,2]
[364293056,1749060635239,-423.22003313,0.00020843,2]
[364293057,1749060635248,-440.0,0.00020843,2]
[364293058,1749060635259,-440.0,0.00020843,2]
[364293059,1749060635268,-440.0,0.00020843,2]
[364293060,1749060635278,-440.0,0.00020843,2]
[364293061,1749060635288,-430.0,0.00020843,2]
[364293062,1749060635297,-440.0,0.00020843,2]
[364293063,1749060635307,-335.95932143,0.00020843,2]
[364293064,1749060635317,-440.0,0.00020843,2]
[364293065,1749060635327,-440.0,0.00020843,2]
[364293066,1749060635337,-440.0,0.00020843,2]
[364293067,1749060635347,-440.0,0.00020843,2]
[364293068,1749060635356,-440.0,0.00020843,2]
[364293069,1749060635366,-440.0,0.00020843,2]
[364293070,1749060635478,-408.09044017,0.00020843,2]
[364293071,1749060635489,-440.0,0.00020843,2]
[364293072,1749060635498,-430.0,0.00020843,2]
[364293073,1749060635507,-440.0,0.00020843,2]
[364293074,1749060635517,-440.0,0.00020843,2]
[364293075,1749060635526,-400.0,0.00020843,2]
[364293076,1749060635536,-440.0,0.00020843,2]
[364293077,1749060635546,-430.0,0.00020843,2]
[364293078,1749060635555,-453.22447969,0.00020843,2]
[364293079,1749060635565,-440.0,0.00020843,2]
[364293080,1749060635574,-440.0,0.00020843,2]
[364293081,1749060635584,-440.0,0.00020843,2]
[364293082,1749060635593,-440.0,0.00020843,2]
[364293083,1749060635603,-495.98,0.00020843,2]
[364293084,1749060635612,-440.0,0.00020843,2]
[364293085,1749060635622,-440.0,0.00020843,2]
[364293086,1749060635632,-452.77394375,0.00020843,2]
[364293087,1749060635641,-440.0,0.00020843,2]
[364293088,1749060635651,-574.68059444,0.00020843,2]
[364293089,1749060635660,-430.0,0.00020843,2]